Cogmind - Beta 14 @@@ ROGUE MODE // 2024.08.14 @ 10:03:17 Player: Minty Result: Destroyed by S-27 Virus with Autogun Performance ------------- Evolutions (3) 1500 Regions Visited (5) 1000 Robots Destroyed (89) 445 Value Destroyed (2481) 2481 Prototype IDs (8) 160 Alien Tech Used (0) 0 Bonus (306) 306 TOTAL SCORE: 5892 Bonus ------- High Alert Combat Kills 306 Cogmind --------- Core Integrity 0/700 Matter 148/300 Energy 75/100 System Corruption 8% Temperature Cool (0) Movement Core (50) Location -7/Factory Parts ------- > --- POWER (2) -------- (None) > --- PROPULSION (5) --- (None) > --- UTILITY (4) ------ Hacking Suite > --- WEAPON (2) ------- (None) > --- INVENTORY (5) ---- Improved Cooling System High-capacity Matter Pod (200) Heavy Laser Peak State ------------ > --- POWER ------------ Reinforced Deuterium Engine > --- PROPULSION ------- Improved Carbon-fiber Leg Wheel > --- UTILITY ---------- Target Analyzer Hardened Medium Armor Plating Hacking Suite > --- WEAPON ----------- Plasma Cannon Gauss Rifle > --- INVENTORY -------- Improved Cooling System High-capacity Matter Pod Heavy Laser Heavy Missile Launcher [Rating: 27] Favorites ----------- Power Ion Engine Engine Ion Engine Propulsion VTOL Module Leg Aluminum Leg Wheel Wheel Flight Unit VTOL Module Utility Small Storage Unit Device Weight Redist. System Storage Small Storage Unit Processor Targeting Computer Hackware Hacking Suite Protection Light Armor Plating Weapon Particle Gun Energy Gun Particle Gun Energy Cannon Plasma Cannon Ballistic Gun Light Assault Rifle Launcher Grenade Launcher Build | -11 -10 -10 -9 -8 -7 ------- Run | Yrd Mat Min Mat Mat Fac Slots Evolved 6 | . . . 2 2 2 Power 1 | . . . . . 1 Propulsion 3 | . . . 1 1 1 Utility 2 | . . . 1 1 . Weapon . | . . . . . . Parts Attached 81 | . 22 . 25 16 18 Power 10 | . 3 . 5 1 1 Engine 10 | . 3 . 5 1 1 Core . | . . . . . . Reactor . | . . . . . . Propulsion 20 | . 7 . 7 3 3 Treads . | . . . . . . Leg 5 | . 4 . . . 1 Wheel 2 | . . . . . 2 Hover . | . . . . . . Flight 13 | . 3 . 7 3 . Utility 19 | . 6 . 4 5 4 Device 6 | . 2 . 1 2 1 Storage 7 | . 2 . 2 3 . Processor 3 | . 1 . 1 . 1 Hackware 1 | . . . . . 1 Protection 2 | . 1 . . . 1 Artifact . | . . . . . . Weapon 32 | . 6 . 9 7 10 Energy Gun 16 | . 4 . 7 3 2 Energy Cannon 2 | . . . . . 2 Ballistic Gun 4 | . . . 1 . 3 Ballistic Cannon . | . . . . . . Launcher 10 | . 2 . 1 4 3 Special Weapon . | . . . . . . Impact Weapon . | . . . . . . Slashing Weapon . | . . . . . . Piercing Weapon . | . . . . . . Special Melee Weapon . | . . . . . . Unidentified Prototypes 2 | . . . 1 1 . Corrupted Parts 2 | . . . 1 . 1 System Corruption 5 | . . . 3 . 2 Parts Lost 26 | . 2 . 3 9 12 Power 5 | . 1 . 1 2 1 Propulsion 8 | . . . 1 2 5 Utility 7 | . . . 1 3 3 Weapon 6 | . 1 . . 2 3 Highest Loss Streak 9 | . 2 . 1 9 8 To Critical Strikes . | . . . . . . Average Slot Usage (%) 85 | . 88 85 96 89 42 Engine 9 | . 11 14 11 7 3 Leg 5 | . 16 . . . 3 Flight 21 | . 11 28 33 31 3 Device 10 | . 7 14 14 15 . Storage 10 | . 13 14 11 9 2 Processor 4 | . 2 . 4 8 4 Protection 1 | . 2 . . . 3 Energy Gun 10 | . 7 . 17 13 1 Ballistic Gun 5 | . 10 . 4 1 3 Launcher 1 | . 1 14 . 2 1 Peak Build Rating 27 | . 8 7 19 26 27 Average Rating 13 | . 7 7 16 20 16 On Entrance 8 | 6 6 7 7 18 8 Naked Turns . | . . . . . . Heaviest Build 33 | 12 15 13 19 24 33 Greatest Support 23 | 20 20 14 18 23 20 Greatest Overweight (x) 3 | . 1 . 1 1 3 Average Overweight (x) . | . . . . . . Largest Inventory Capacity 10 | . 8 8 8 10 8 Average Capacity 7 | . 7 8 8 8 5 Most Carried 8 | . 8 8 8 8 8 Average Carried 7 | . 7 8 7 7 4 Final Capacity 8 | 8 8 8 8 8 5 Final Carried 8 | 6 8 8 8 7 3 Class Distribution -------------------- 50% | Mutant 48% | Sprinter Dominant Class ---------------- Mutant | -10/Materials Mutant | -10/Mines Sprinter | -9/Materials Sprinter | -8/Materials Mutant | -7/Factory Resources | -11 -10 -10 -9 -8 -7 ----------- Run | Yrd Mat Min Mat Mat Fac Matter Collected 1462 | 200 327 79 412 178 266 Remotely . | . . . . . . Salvage Created 2735 | . 610 34 1238 405 448 Parts 184 | . 34 4 85 40 21 Haulers Intercepted 9 | . 2 . 5 1 1 Recyclers Shooed 2 | . 1 . 1 . . Parts Field Recycled . | . . . . . . Retrieved Matter . | . . . . . . Parts Self-Destructed . | . . . . . . Prevented . | . . . . . . Kills | -11 -10 -10 -9 -8 -7 ------- Run | Yrd Mat Min Mat Mat Fac Combat Hostiles Destroyed 65 | . 19 2 23 12 9 Guns 30 | . 9 . 17 4 . AOE 33 | . 10 2 6 8 7 Classes Destroyed 12 | . 4 1 3 1 3 Worker 4 | . . . 2 2 . Builder 8 | . . . 2 3 3 Hauler 9 | . 2 . 5 1 1 Recycler 1 | . . . . . 1 Operator 1 | . . . . . 1 Watcher 2 | . 1 . 1 . . Swarmer 13 | . 3 . 6 4 . Grunt 39 | . 16 1 14 2 6 Brawler 1 | . . . . . 1 Sentry 8 | . . . 3 4 1 Hunter 3 | . . . . 2 1 Assembled 1 | . . 1 . . . Best Kill Streak 13 | . 7 2 10 13 5 Combat Bots Only 9 | . 6 2 4 9 4 Max Kills in Single Turn 4 | . 2 1 3 4 3 Gunslinging 1 | . . . 1 . . Exploded 4 | . 2 1 1 4 2 Melee . | . . . . . . Uniques/NPCs Destroyed . | . . . . . . Combat | -11 -10 -10 -9 -8 -7 -------- Run | Yrd Mat Min Mat Mat Fac Hostile Shots Fired 537 | . 92 4 97 74 270 Missed 219 | . 35 3 51 30 100 Damage Taken 4110 | . 704 13 551 941 1901 Core 1308 | . 137 . 127 343 701 Absorbed by Shields . | . . . . . . Regen/Repaired (Parts) 210 | . 166 . 24 20 . Core Remaining (%) 62 | 100 . 45 68 37 . Volleys Fired 196 | . 79 2 60 30 25 Largest 2 | . 2 1 2 2 2 Hottest 143 | . 105 30 110 126 143 Shots Fired 323 | . 122 2 110 51 38 Gun 270 | . 107 . 107 35 21 Cannon 9 | . . . . . 9 Launcher 44 | . 15 2 3 16 8 Special . | . . . . . . Kinetic 80 | . 60 . 5 3 12 Thermal 111 | . 34 . 27 32 18 Explosive 40 | . 15 2 3 12 8 Electromagnetic 92 | . 13 . 75 4 . Robot Hit Streak 13 | . 8 5 8 13 12 Robot Miss Streak 5 | . 3 . 5 3 3 Penetration Max . | . . . . . . Secondary Targets 5 | . 3 . 2 . . Max Gunslinging Chain 1 | . 1 . 1 . . Shots Hit Robots 211 | . 75 1 74 32 29 Core Hits 152 | . 38 7 53 32 22 Critical Kills 1 | . 1 . . . . Critical Parts Destroyed . | . . . . . . Critical Strikes 6 | . 4 . 1 1 . Burn 4 | . 2 . 1 1 . Destroy 1 | . 1 . . . . Corrupt 1 | . 1 . . . . Melee Attacks . | . . . . . . Impact . | . . . . . . Slashing . | . . . . . . Piercing . | . . . . . . Sneak Attacks . | . . . . . . Combat Hostiles . | . . . . . . Follow-up Attacks . | . . . . . . Damage Inflicted 6568 | . 1562 153 1825 1320 1708 Guns 2490 | . 715 . 1077 419 279 Cannons 173 | . . . . . 173 Explosions 3903 | . 847 153 748 901 1254 Melee . | . . . . . . Ramming 2 | . . . . . 2 Kinetic 628 | . 327 . 57 34 210 Thermal 1542 | . 296 . 457 385 404 Explosive 3102 | . 847 153 231 779 1092 Electromagnetic 1294 | . 92 . 1080 122 . Impact . | . . . . . . Slashing . | . . . . . . Piercing . | . . . . . . Highest Corruption 8 | . 1 1 3 . 8 Average Corruption 2 | . 1 1 3 . 7 Corruption Purged . | . . . . . . Corruption Blocked . | . . . . . . Effects 18 | . 5 . 7 . 6 Message Errors 2 | . 1 . . . 1 Matter Fused 4 | . 1 . 2 . 1 Heat Flow Errors 2 | . . . 2 . . Energy Discharges 4 | . 2 . 1 . 1 Parts Fused 1 | . . . . . 1 Data Loss (minor) 4 | . 1 . 1 . 2 Data Loss (major) 1 | . . . 1 . . Overload Shots . | . . . . . . Overflow Damage 138 | . 25 . 14 30 69 Projectiles . | . . . . . . Explosions 138 | . 25 . 14 30 69 Melee . | . . . . . . Knockbacks . | . . . . . . Impact . | . . . . . . Kinetic . | . . . . . . Secondary . | . . . . . . Self-Inflicted Damage 237 | . 42 . 42 51 102 Shots 8 | . 2 . 2 2 2 Rammed 1 | . . . . . 1 Targets Rammed 1 | . . . . . 1 Kicked . | . . . . . . Crushed . | . . . . . . Highest Temperature 593 | . 593 1 325 233 428 Average Temperature 108 | . 145 1 92 56 137 Received Heat Transfer 1227 | . 375 . 192 81 579 Effects 18 | . 16 . . . 2 Energy Bleed 4 | . 4 . . . . Interference 2 | . 1 . . . 1 Matter Decay 1 | . 1 . . . . Short Circuit 4 | . 4 . . . . Damage (minor) 1 | . . . . . 1 Damage (major) 6 | . 6 . . . . Siege Activations . | . . . . . . Robots Corrupted . | . . . . . . Combat Hostiles . | . . . . . . Parts Fried 2 | . . . 1 . 1 Impact Corruptions . | . . . . . . Robots Melted 1 | . . . . . 1 Combat Hostiles 1 | . . . . . 1 Parts Melted 6 | . . . 2 2 2 Heat Transferred 3340 | . 851 . 966 925 598 Parts Sabotaged . | . . . . . . Parts Stolen . | . . . . . . Parts Stripped . | . . . . . . Power Chain Reactions 8 | . . . 5 1 2 Alert | -11 -10 -10 -9 -8 -7 ------- Run | Yrd Mat Min Mat Mat Fac Peak Influence 810 | . 576 217 810 630 639 Initial 283 | . . 165 84 114 283 Average 310 | . 154 186 403 301 461 Maximum Alert Level 3 | . 2 1 3 2 2 Low Security (%) 33 | . 71 60 9 35 . Level 1 33 | . 18 39 43 38 35 Level 2 29 | . 9 . 36 25 64 Level 3 3 | . . . 10 . . Level 4 . | . . . . . . Level 5 . | . . . . . . High Security . | . . . . . . Max Security . | . . . . . . Squads Dispatched 12 | . 4 . 3 3 2 Investigation 11 | . 4 . 3 2 2 Extermination . | . . . . . . Reinforcement 1 | . . . . 1 . Assault . | . . . . . . Garrison . | . . . . . . Intercept . | . . . . . . Searches Triggered . | . . . . . . Construction Impeded . | . . . . . . Haulers Reinforced . | . . . . . . Active Scanning Responses . | . . . . . . Cargo Convoy Interrupts . | . . . . . . Stealth | -11 -10 -10 -9 -8 -7 --------- Run | Yrd Mat Min Mat Mat Fac Distress Signals 6 | . 1 1 2 1 1 Communications Jammed . | . . . . . . Distress Signals . | . . . . . . Times Spotted 118 | . 30 13 29 21 25 Peak Tracking Total 22 | . 5 22 4 11 7 Tactical Retreats 14 | . 2 1 4 3 4 Traps | -11 -10 -10 -9 -8 -7 ------- Run | Yrd Mat Min Mat Mat Fac Traps Triggered 5 | . 2 . 3 . . Indirectly 3 | . . . 3 . . Trap Hack Attempts . | . . . . . . Triggered . | . . . . . . Disarmed . | . . . . . . Reprogrammed . | . . . . . . Reused . | . . . . . . Traps Extracted . | . . . . . . Installed . | . . . . . . Triggered 1 | . . . 1 . . Objects Rigged 9 | . . . 2 . 7 Exploded 3 | . . . 2 . 1 Machines | -11 -10 -10 -9 -8 -7 ---------- Run | Yrd Mat Min Mat Mat Fac Machines Disabled 15 | . 3 . 4 1 7 Max in Single Turn 3 | . 1 . 2 1 3 Machines Repaired . | . . . . . . Machines Dismantled . | . . . . . . Machines Sabotaged . | . . . . . . Overloaded Fab Kills 4 | . . . . . 4 Hacking | -11 -10 -10 -9 -8 -7 --------- Run | Yrd Mat Min Mat Mat Fac Machines Accessed 30 | . 10 . 11 5 4 Terminals 22 | . 8 . 8 4 2 Fabricators 1 | . . . . . 1 Repair Stations 3 | . 1 . 1 1 . Recycling Units 3 | . 1 . 2 . . Scanalyzers . | . . . . . . Garrison Access 1 | . . . . . 1 Total Hacks 127 | . 39 . 57 18 13 Successful 63 | . 22 . 27 8 6 Failed 64 | . 17 . 30 10 7 Catastrophic 7 | . 1 . 4 . 2 Database Lockouts . | . . . . . . Manual 94 | . 27 . 44 10 13 Terminals 106 | . 32 . 49 16 9 Fabricators 1 | . . . . . 1 Repair Stations 8 | . 4 . 2 2 . Recycling Units 9 | . 3 . 6 . . Scanalyzers . | . . . . . . Garrison Access 3 | . . . . . 3 Terminal Hacks 19 | . 6 . 8 2 3 Record 1 | . . . . 1 . Robot Analysis 2 | . 1 . . 1 . Prototype ID Bank 3 | . 1 . 2 . . Branch Access Points 1 | . . . . . 1 Terminal Index 1 | . 1 . . . . Alert Level 5 | . 1 . 3 . 1 Unreport Threat 4 | . . . 3 . 1 Locate Traps 2 | . 2 . . . . Fabricator Hacks . | . . . . . . Repair Station Hacks 8 | . 4 . 2 2 . Scan Component 4 | . 2 . 1 1 . Repair 4 | . 2 . 1 1 . Recycling Unit Hacks 5 | . 1 . 4 . . Process 1 | . . . 1 . . Report Inventory 3 | . 1 . 2 . . Retrieve Matter 1 | . . . 1 . . Scanalyzer . | . . . . . . Garrison Access Hacks . | . . . . . . Unauthorized Hacks 31 | . 11 . 13 4 3 Terminals 30 | . 11 . 13 4 2 Assimilate 2 | . 1 . 1 . . Botnet 10 | . 4 . 4 1 1 Detonate 2 | . . . 1 . 1 Operators 2 | . 1 . 1 . . Skim 14 | . 5 . 6 3 . Fabricators 1 | . . . . . 1 Overload 1 | . . . . . 1 Repair Stations . | . . . . . . Recycling Units . | . . . . . . Scanalyzers . | . . . . . . Garrison Access . | . . . . . . Data Cores Recovered . | . . . . . . Used . | . . . . . . Hacking Detections 29 | . 10 . 11 5 3 Full Trace Events 11 | . 4 . 4 2 1 Feedback Events . | . . . . . . Feedback Blocked . | . . . . . . Robot Schematics Acquired . | . . . . . . Robots Built . | . . . . . . Authchips . | . . . . . . Time . | . . . . . . Total Robot Build Rating . | . . . . . . Part Schematics Acquired . | . . . . . . Parts Built . | . . . . . . Authchips . | . . . . . . Time . | . . . . . . Total Part Build Rating . | . . . . . . Parts Repaired 4 | . 2 . 1 1 . Time 122 | . 58 . 32 32 . Parts Recycled . | . . . . . . Recycled Matter 235 | . . . 235 . . Retrieved Matter 293 | . . . 293 . . Retrieved Components . | . . . . . . Parts Scanalyzed . | . . . . . . Part Schematics Acquired . | . . . . . . Parts Damaged . | . . . . . . Bothacking | -11 -10 -10 -9 -8 -7 ------------ Run | Yrd Mat Min Mat Mat Fac Used RIF Installer . | . . . . . . Robots Hacked . | . . . . . . Non-combat . | . . . . . . Combat . | . . . . . . Robot Hacks Applied . | . . . . . . Relay Couplers Released . | . . . . . . Fabnet Peak Effective % . | . . . . . . Robots Rewired . | . . . . . . Allies Hacked . | . . . . . . Hacks Repelled . | . . . . . . Allies | -11 -10 -10 -9 -8 -7 -------- Run | Yrd Mat Min Mat Mat Fac Total Allies 1 | . . 1 . . . Largest Group 1 | . . 1 . . . Highest-Rated Group 31 | . . 31 . . . Highest-Rated Ally 31 | . . 31 . . . Total Orders . | . . . . . . Ally Attacks 6 | . . 6 . . . Total Damage 106 | . . 106 . . . Kills . | . . . . . . Allies Corrupted . | . . . . . . Allies Melted . | . . . . . . Intel | -11 -10 -10 -9 -8 -7 ------- Run | Yrd Mat Min Mat Mat Fac Robot Analysis Total 2 | . 1 . . 1 . Derelict Logs Recovered 3 | . . 3 . . . Drone Launches . | . . . . . . Drone Recoveries . | . . . . . . Exploration | -11 -10 -10 -9 -8 -7 ------------- Run | Yrd Mat Min Mat Mat Fac Turns Passed 2447 | . 823 58 909 303 354 Spaces Moved 2155 | 1 615 133 647 356 403 Core 71 | . . . . . 71 Treads . | . . . . . . Legs 242 | 1 241 . . . . Wheels 137 | . . . . . 137 Hover . | . . . . . . Flight 1705 | . 374 133 647 356 195 Fastest Speed 26 | 120 37 37 29 26 32 Average Speed 47 | 120 69 37 29 28 61 Slowest Speed 200 | 120 120 37 109 112 200 Overloaded Moves . | . . . . . . Propulsion Burnouts . | . . . . . . Robots Hopped 24 | . 6 . 6 11 1 Cave-ins Triggered . | . . . . . . Exploration Rate (%) 40 | 2 83 45 55 37 19 Regions Visited 5 Branch Regions 1 Pre-discovered Areas 5 | . 2 1 2 . . Known Exits Taken 2 | . . 1 1 . . Unknown Exits Taken 3 | 1 1 . . 1 . Scrap Searched 2 | . . 2 . . . Spaces Dug 13 | . 13 . . . . Terrain Destroyed 271 | . 70 17 44 66 74 Melee . | . . . . . . Projectile . | . . . . . . AOE 271 | . 70 17 44 66 74 Terrain Rammed . | . . . . . . Walls Destroyed . | . . . . . . Machines Disabled . | . . . . . . Actions | -11 -10 -10 -9 -8 -7 --------- Run | Yrd Mat Min Mat Mat Fac Total 3251 | . 894 139 1252 495 471 Wait 746 | . 153 5 486 91 11 Move 2104 | . 603 132 634 334 401 Hop 22 | . 5 . 6 10 1 Pick Up 32 | . 12 . 11 4 5 Fast Attach 31 | . 12 . 7 5 7 Attach 17 | . 1 . 5 3 8 Detach 10 | . 1 . 3 1 5 Swap 33 | . 9 . 13 8 3 Drop 50 | . 19 . 18 9 4 Fire 196 | . 79 2 60 30 25 Melee . | . . . . . . Ram 1 | . . . . . 1 Kick . | . . . . . . Crush . | . . . . . . Escape Stasis . | . . . . . . Rewire 9 | . . . 9 . . Trap . | . . . . . . Miscellaneous . | . . . . . . Route ------- -11/Scrapyard -10/Materials (discovered 6 exits: *Mat x3 / [*Min x2] / Sub) -10/Mines (discovered 4 exits: *Mat x2 / Exi / Sub) -9/Materials (discovered 5 exits: *Mat x3 / *Min x2) -8/Materials -7/Factory (discovered 5 exits: [*Fac] / Sto x2 / Low x2) History --------- Turn | Location | Event 1 | -11/Scrapyard | Discovered new exit (range 0) 1 | -11/Scrapyard | Entered Materials 310 | -10/Materials | Discovered new exit (range 16) 320 | -10/Materials | Build established: Mutant 504 | -10/Materials | Discovered new exit (range 8) 559 | -10/Materials | Repaired Particle Gun 586 | -10/Materials | Repaired Sml. Storage Unit 608 | -10/Materials | Discovered new exit (range 7) 658 | -10/Materials | Learned location of Recycling (-7) 700 | -10/Materials | Learned location of 1 exit from Recycling 723 | -10/Materials | Discovered new exit (range 15) 731 | -10/Materials | Learned location of 2 exits from Mines 757 | -10/Materials | Identified exit to Materials 757 | -10/Materials | Identified exit to Subcaves 758 | -10/Materials | Learned location of 1 exit from Storage 760 | -10/Materials | Learned 4 Subcaves zone layouts 780 | -10/Materials | Core integrity fell below 50% 785 | -10/Materials | Learned Storage stockpile data 812 | -10/Materials | Learned Storage stockpile data 824 | -10/Materials | Entered Mines 826 | -10/Mines | Identified exit to Exiles 836 | -10/Mines | Received a Mining Laser from a helpful Derelict 845 | -10/Mines | Learned Materials terminal intel 849 | -10/Mines | Learned Materials stockpile data 855 | -10/Mines | Assembled infested the area 879 | -10/Mines | Learned location of Storage (-7) 882 | -10/Mines | Entered Materials 882 | -9/Materials | Evolved 2 slots: Propulsion x1, Utility x1 884 | -9/Materials | Loaded intel: 12 terminal locations 1236 | -9/Materials | Build established: Sprinter 1304 | -9/Materials | Discovered new exit (range 8) 1348 | -9/Materials | Discovered new exit (range 10) 1473 | -9/Materials | Repaired VTOL Module 1537 | -9/Materials | Discovered new exit (range 9) 1623 | -9/Materials | Learned Storage emergency access door positions 1658 | -9/Materials | Identified exit to Materials 1681 | -9/Materials | Learned 2 Storage zone layouts 1701 | -9/Materials | Identified exit to Mines 1702 | -9/Materials | Learned Storage trap positions 1762 | -9/Materials | Learned 2 Materials zone layouts 1791 | -9/Materials | Entered another Materials area 1791 | -8/Materials | Evolved 2 slots: Propulsion x1, Utility x1 1827 | -8/Materials | Repaired VTOL Module 2061 | -8/Materials | Discovered new exit (range 16) 2070 | -8/Materials | Destroyed 9 combat bots 2091 | -8/Materials | Core integrity fell below 50% 2094 | -8/Materials | Entered Factory 2094 | -7/Factory | Evolved 2 slots: Power x1, Propulsion x1 2100 | -7/Factory | Discovered new exit (range 13) 2121 | -7/Factory | Lost 9 parts (2p2n3u2w) 2209 | -7/Factory | Lost 3 parts (2n1u) 2287 | -7/Factory | Identified exit to Storage 2287 | -7/Factory | Identified exit to Lower Caves 2402 | -7/Factory | Core integrity fell below 50% 2436 | -7/Factory | Core integrity fell below 20% 2448 | -7/Factory | Destroyed by S-27 Virus with Autogun Last Messages --------------- 02396_ Slug penetrates Wall. 02396_ Critical hit (Burn: +37). 02397_ Y-54 Guardian heat damages Gatling Laser. 02397_ Slug penetrates Y-54 Guardian. 02397_ Plasma Cannon destroyed. 02397_ Hrd. Medium Armor Plating destroyed. 02397_ Gauss Rifle destroyed. 02398_ Rnf. Deuterium Engine destroyed. 02399_ Slug penetrates Wall. 02401_ G-47 Trooper destroyed. 02401_ Destroyed Lgt. Nuclear Core. 02401_ G-47 Trooper destroyed. 02403_ H-55 Commando destroyed. 02403_ K-01 Serf collects debris. 02404_ System corrupted: Component data lost. 02404_ Y-54 Guardian heat damages Imp. Heat Sink. 02406_ Hvy. Missile Launcher destroyed. 02407_ K-01 Serf collects debris. 02415_ T-07 Excavator destroyed. 02423_ Target Analyzer destroyed. Map ----- +----------------------------------------------------+ | ?????????????????????????????? | | ?????????????????????????????? | | ?????????????????????????????? | | ?????????????????????????????? | | ?????????????????????????????? | | ?????????????????????????????? | | ?????????????????????????????? | | ?????????????????????????????? | | ?????????????????????????????? | | ?????????????????????????????? | | ?????????????????????????????? | | ?????????????????????????????? | | ?????????????????????????????? | | ?????????????????????????????? | | ?????????????????????????????? | | ?????????????????????????????? | | ?????????????????????????????? | | ?????????????????????????????? | | ?????????????????????????????? | | ?????????????????????????????? | | ?????????????????????????????? | | ?????????????????????????????? | | ????#+#??????????????????????? | | ????# ??????????????????????? | | ????# #??????????????????????? | | ????#@#???#################### | | ????# #???# | | ????# #???# | | ????#s##### | | ????# s | | ????####### | | ??????????# | | ??????????# | | ??????????# ########### | | ??????????# # ??? | | ??????????# # """ """??? | | ??????????# # """ """??? | | ??????????# + """ """ #? | | ??????????+ ^# +? | | ??????????# ^ # """ """ #? | | ??????????# # """ """ ?? | | ??????????# # """ """ #? | | ??????????#######+# #? | | ??????????????????#+#########? | | ??????????????????# ########## | | ??????????????????# | | ??????????????????# | | ??????????????????+ | | ??????????????????# " | | ??????????????????# " | +----------------------------------------------------+ Best States ------------- Heat Dissipation 61 Energy Generation 16 Energy Capacity 375 Matter Stores 300 Matter Capacity 300 Sight Range 16 Terrain Scan Density 10 Additional Mass Support 6 Armor Coverage 225 Evasion (%) 64 Targeting Accuracy 5 Target Analysis 5 Offensive Hacking 10 Item Schematics ----------------- None Robot Schematics ------------------ None Fabricated ------------ Nothing Alien Tech Used ----------------- None Achievements -------------- None Challenges ------------ None Game ------ Seed HeatHypercooledShredder Manual? 0 Play Time 00:25:51 Cumulative 859.7 hours Start 2024.08.14 @ 09:38:15 End 2024.08.14 @ 10:03:17 Sessions 1 Manual Loads 0 Difficulty Rogue Special Mode None Game No. 1034 Rogue 755 Adventurer 124 Explorer 155 Win Type - Total 36 Types 28/0/6/1/0/0/0/1/0 Lore% 75 Gallery% 89 Achievement% 78 Wizard Run 0 Options --------- Layout 0 ASCII 0 Keyboard 1 Movement Numpad Keybinds 0 Fullscreen 2 Font 18/Smallcaps Map View 76x50 Zoom Use 0% Tactical HUD 1 Map Filters NONE Filters NONE Steam 1 RUN: b2ee1818-9af2-462e-9a61-d8c90db8143b